Cogmind - Beta 12 @@@ ROGUE MODE // 2023.03.31 @ 11:55:59 Player: dhtilly Result: Destroyed by S-43 Plague with Heavy Machine Gun Performance ------------- Evolutions (9) 4500 Regions Visited (19) 3800 Robots Destroyed (349) 1745 Value Destroyed (11467) 11467 Prototype IDs (74) 1480 Alien Tech Used (0) 0 Bonus (6131) 6131 TOTAL SCORE: 29123 Bonus ------- High Alert Combat Kills 2353 Follower Combat Kills 1685 A7 Reached Mainframe 300 Acquired SGEMP 2000 Friendly Fire -207 Cogmind --------- Core Integrity 0/1600 Matter 290/300 Energy 88/100 System Corruption 7% Temperature Cool (0) Movement Flying (40) Location -1/Access Parts ------- > --- POWER (1) -------- (None) > --- PROPULSION (7) --- Xenon Bombardment Thruster > --- UTILITY (15) ----- Enhanced Optical Array Advanced Signal Interpreter Advanced Terrain Scan Processor Advanced Melee Analysis Suite Advanced Target Analyzer Core Analyzer System Mapper > --- WEAPON (2) ------- Nanosword > --- INVENTORY (5) ---- Cooled Antimatter Reactor Heavy Siege Treads Improved Matter Neutralizer Nanosword Peak State ------------ > --- POWER ------------ Cooled Antimatter Reactor > --- PROPULSION ------- Impulse Thruster Impulse Thruster Field Propulsion Array Field Propulsion Array Electron Diverter > --- UTILITY ---------- Experimental Power Amplifier Small Storage Unit Enhanced Optical Array Advanced Sensor Array Advanced Signal Interpreter Advanced Terrain Scan Processor Advanced Melee Analysis Suite Advanced Target Analyzer Advanced Target Analyzer Core Analyzer Stasis Canceller Improved Transmission Jammer Hacking Suite System Mapper System Shield > --- WEAPON ----------- Thunder Hammer Nanosword > --- INVENTORY -------- Light Antimatter Reactor 2N-1CE's Frost Array Improved Matter Neutralizer Precision Rocket Launcher Advanced Remote Datajack Nanosword SGEMP Prototype [Rating: 161] Favorites ----------- Power Heavy Ion Engine Engine Heavy Ion Engine Power Core Micro Nuclear Core Reactor Micro Antimatter Reactor Propulsion Light Treads Treads Light Treads Leg Aluminum Leg Wheel Wheel Flight Unit Improved Cesium-ion Thruster Utility High-capacity Storage Unit Device Transmission Jammer Storage High-capacity Storage Unit Processor Advanced Terrain Scan Processor Hackware Hacking Suite Protection Hardened Light Armor Plating Weapon Improved Assault Rifle Energy Gun Heavy Particle Gun Energy Cannon Advanced Beam Cannon Ballistic Gun Improved Assault Rifle Ballistic Cannon Gauss Cannon Launcher Grenade Launcher Special Weapon Remote Datajack Impact Weapon Shock Maul Slashing Weapon Phasing Sabre Piercing Weapon Spear Build | -11 -10 -10 -9 -9 -8 -8 -7 -7 -6 -6 -6 -6 -6 -5 -4 -3 -3 -2 -1 ------- Run | Jun Mat Min Mat Min Mat Sto Fac Low Fac Ext Cet Arc Hub Fac Fac Res Tes Res Acc Slots Evolved 18 | . . . 2 . 2 . 2 . 2 . . . . 2 2 2 . 2 2 Power . | . . . . . . . . . . . . . . . . . . . . Propulsion 5 | . . . 1 . 1 . . . . . . . . 1 . . . 1 1 Utility 13 | . . . 1 . 1 . 2 . 2 . . . . 1 2 2 . 1 1 Weapon . | . . . . . . . . . . . . . . . . . . . . Parts Attached 513 | 6 7 14 52 21 41 40 65 8 44 17 20 . 7 26 15 35 43 9 43 Power 41 | 1 1 1 6 . 2 1 4 . 7 . 1 . 1 3 1 2 3 2 5 Engine 13 | 1 1 1 6 . 1 . 3 . . . . . . . . . . . . Core 19 | . . . . . 1 1 1 . 7 . 1 . 1 3 1 1 2 . . Reactor 9 | . . . . . . . . . . . . . . . . 1 1 2 5 Propulsion 118 | 2 1 5 12 14 13 11 14 . 15 1 . . . 1 2 2 9 3 13 Treads 37 | 2 1 1 12 2 8 9 2 . . . . . . . . . . . . Leg 16 | . . 2 . 8 5 . . . . . . . . . . . . 1 . Wheel 14 | . . 2 . 4 . 1 6 . . . . . . . . . . . 1 Hover . | . . . . . . . . . . . . . . . . . . . . Flight 51 | . . . . . . 1 6 . 15 1 . . . 1 2 2 9 2 12 Utility 190 | 1 5 . 11 1 14 18 18 3 14 15 6 . 5 15 10 15 24 3 12 Device 93 | . 1 . 3 . 6 11 6 1 7 6 3 . 2 6 7 14 13 . 7 Storage 17 | 1 3 . 2 . . 1 1 1 . 1 1 . . 1 . . 4 . 1 Processor 33 | . 1 . 1 . 2 . 4 . 3 3 . . 3 2 2 1 6 2 3 Hackware 8 | . . . . . . 1 . 1 1 1 . . . 1 . . 1 1 1 Protection 39 | . . . 5 1 6 5 7 . 3 4 2 . . 5 1 . . . . Artifact . | . . . . . . . . . . . . . . . . . . . . Weapon 164 | 2 . 8 23 6 12 10 29 5 8 1 13 . 1 7 2 16 7 1 13 Energy Gun 7 | . . 1 2 . 1 . . . 2 . . . . . . . 1 . . Energy Cannon 17 | . . 3 3 . 2 . . . . . . . 1 1 1 5 . . 1 Ballistic Gun 31 | 2 . . 11 4 3 . 7 2 1 . 1 . . . . . . . . Ballistic Cannon 16 | . . . . . 4 6 6 . . . . . . . . . . . . Launcher 30 | . . 4 3 2 . 1 3 . 2 . 5 . . 2 . 2 2 . 4 Special Weapon 4 | . . . . . . . 1 . . . . . . . . 3 . . . Impact Weapon 12 | . . . . . . 1 . . . . 1 . . 4 1 . 1 . 4 Slashing Weapon 42 | . . . 4 . 2 2 8 3 3 1 6 . . . . 5 3 1 4 Piercing Weapon 5 | . . . . . . . 4 . . . . . . . . 1 . . . Special Melee Weapon . | . . . . . . . . . . . . . . . . . . . . Unidentified Prototypes 43 | . . . 5 . 3 2 1 . 5 . 3 . 1 2 1 1 15 2 2 Corrupted Parts 2 | . . . . 2 . . . . . . . . . . . . . . . System Corruption 13 | . . . . 13 . . . . . . . . . . . . . . . Parts Lost 110 | . . 5 2 5 2 5 20 . 11 1 2 3 . 4 6 7 12 . 25 Power 10 | . . 1 . . . 1 2 . 2 . . 1 . . . 1 1 . 1 Propulsion 42 | . . 2 . 3 1 2 10 . 7 . . . . . 2 1 4 . 10 Utility 46 | . . . 2 1 1 2 4 . 2 1 2 2 . 4 3 5 5 . 12 Weapon 12 | . . 2 . 1 . . 4 . . . . . . . 1 . 2 . 2 Highest Loss Streak 15 | . . 5 1 3 1 1 10 . 3 1 1 4 . 1 5 3 5 . 15 To Critical Strikes 2 | . . . . . . . . . . . . . . . . . 1 . 1 Average Slot Usage (%) 94 | . 98 98 97 98 98 95 90 94 90 97 90 75 87 94 92 82 84 88 80 Engine 5 | . 14 13 11 11 7 . 3 . . . . . . . . . . . . Core 2 | . . . . . 1 8 1 7 5 6 6 4 5 4 5 3 . . . Treads 15 | . 28 1 31 7 31 31 6 . . . . . . . . . . . . Leg 2 | . . 1 . 22 3 . . . . . . . . . . . . . . Wheel 2 | . . 24 . 2 . 1 16 . . . . . . . . . . . . Flight 7 | . . . . . . . 1 30 24 26 26 26 26 25 22 14 14 16 15 Device 10 | . 10 14 10 3 7 8 5 11 7 6 10 4 10 14 11 24 26 17 13 Storage 7 | . 14 14 11 11 9 9 7 7 5 . . . . . 5 4 3 4 4 Processor 10 | . 2 . . . 8 4 9 15 20 19 13 13 24 21 27 26 27 32 27 Hackware 4 | . . . . . . 4 7 9 13 20 16 13 6 9 4 . . 4 9 Protection 7 | . . . 9 18 10 9 14 . 3 5 10 6 . 2 5 . . . . Ballistic Gun 8 | . 28 . 20 21 4 . 5 . . 4 . . . . . . . . . Ballistic Cannon 3 | . . . . . 8 17 3 . . . . . . . . . . . . Slashing Weapon 2 | . . . . . . . 3 9 6 6 5 6 6 5 5 3 3 3 4 Naked Turns . | . . . . . . . . . . . . . . . . . . . . Heaviest Build 74 | 13 29 32 60 60 74 72 69 19 21 23 24 19 23 30 33 35 34 36 44 Greatest Support 88 | 40 40 40 60 60 88 86 42 21 24 24 24 24 24 30 33 36 38 44 52 Greatest Overweight (x) 5 | . . 3 1 5 2 5 5 . 1 . . . . 4 1 . . . . Average Overweight (x) . | . . . . 1 . 1 2 . . . . . . . . . . . . Largest Inventory Capacity 20 | 8 15 15 20 20 20 20 20 10 10 15 5 5 5 10 10 10 10 8 8 Average Capacity 14 | 6 11 15 19 20 20 20 19 8 9 5 5 5 5 5 10 10 8 8 7 Most Carried 20 | 4 15 15 20 20 20 20 20 9 10 5 5 5 5 10 10 10 10 8 8 Average Carried 14 | 2 9 12 19 19 19 19 18 7 9 4 5 5 4 5 9 9 7 7 7 Final Capacity 20 | 8 15 15 20 20 20 20 8 10 5 5 5 5 5 10 10 10 8 8 5 Final Carried 20 | 4 15 15 18 20 20 20 6 9 4 5 5 5 5 10 10 10 8 8 5 Class Distribution -------------------- 43% | Mutant 20% | Scavenger-Mutant 8% | Hacker-Sprinter 7% | Ninja 6% | Hacker-Ninja 3% | Scavenger-Ninja Dominant Class ---------------- Mutant | -10/Materials Mutant | -10/Mines Mutant | -9/Materials Scavenger-Mutant | -9/Mines Mutant | -8/Materials Mutant | -8/Storage Scavenger-Mutant | -7/Factory Sprinter | -7/Lower Caves Hacker-Sprinter | -6/Factory Commander-Sprinter | -6/Extension Hacker-Sprinter | -6/Cetus Hacker-Sprinter | -6/Archives Sprinter | -6/Hub_04(d) Hacker-Ninja | -5/Factory Ninja | -4/Factory Ninja | -3/Research Ninja | -3/Testing Scavenger-Ninja | -2/Research Hacker-Ninja | -1/Access Resources | -11 -10 -10 -9 -9 -8 -8 -7 -7 -6 -6 -6 -6 -6 -5 -4 -3 -3 -2 -1 ----------- Run | Jun Mat Min Mat Min Mat Sto Fac Low Fac Ext Cet Arc Hub Fac Fac Res Tes Res Acc Matter Collected 8843 | 243 365 156 1071 449 971 1536 908 282 334 327 282 . 38 325 145 227 658 47 479 Remotely 1001 | . . . . . 44 658 187 . . . . . . . . . 112 . . Salvage Created 12950 | . 668 153 1485 531 1699 1189 1001 90 835 635 137 . 38 972 252 837 1133 153 1142 Parts 756 | . 59 14 110 32 93 68 68 1 36 23 6 . 4 40 10 51 65 2 74 Haulers Intercepted 43 | . 2 . 6 . 6 6 2 . 4 2 . . . 5 1 3 2 1 3 Recyclers Shooed 11 | . . 1 . . 3 . 4 . 1 . . . . . . 1 . . 1 Parts Field Recycled . | . . . . . . . . . . . . . . . . . . . . Retrieved Matter . | . . . . . . . . . . . . . . . . . . . . Parts Self-Destructed . | . . . . . . . . . . . . . . . . . . . . Prevented . | . . . . . . . . . . . . . . . . . . . . Kills | -11 -10 -10 -9 -9 -8 -8 -7 -7 -6 -6 -6 -6 -6 -5 -4 -3 -3 -2 -1 ------- Run | Jun Mat Min Mat Min Mat Sto Fac Low Fac Ext Cet Arc Hub Fac Fac Res Tes Res Acc Combat Hostiles Destroyed 224 | . 16 10 30 13 31 28 21 . 11 6 3 . . 6 1 11 13 . 24 Melee 31 | . . . . . . . 1 . 10 6 . . . 2 1 . 5 . 6 Guns 62 | . 16 . 24 10 8 . 4 . . . . . . . . . . . . Cannons 64 | . . 4 . . 23 26 7 . . . . . . . . 4 . . . AOE 67 | . . 6 6 3 . 2 9 . 1 . 3 . . 4 . 7 8 . 18 Classes Destroyed 20 | . 4 2 4 2 1 2 2 . 1 1 . . . . . . 1 . . Worker 23 | . . 1 1 1 1 2 7 . 1 . . . . 1 1 5 . . 2 Builder 4 | . . . 1 . . . 1 . . . . . . . . 1 . . 1 Tunneler 4 | . . . . . . . 2 . . . . . . 1 . 1 . . . Hauler 43 | . 2 . 6 . 6 6 2 . 4 2 . . . 5 1 3 2 1 3 Recycler 9 | . . . 1 1 2 . . . 1 . . . . 2 . 1 1 . . Mechanic 2 | . . . . . . 1 1 . . . . . . . . . . . . Operator 8 | . . . 1 . 2 1 . . 1 . . . 1 . 2 . . . . Watcher 26 | . 3 . 3 . 2 1 2 . . 2 . . 1 3 . 1 2 1 5 Swarmer 84 | . 5 6 10 . 7 . 7 . 8 . . . . 4 . 7 10 . 20 Saboteur 1 | . . . . . . . . . 1 . . . . . . . . . . Grunt 73 | . 11 2 10 9 14 12 9 . . 4 1 . . . . 1 . . . Brawler 4 | . . . . 1 . 2 1 . . . . . . . . . . . . Duelist 7 | . . . . 3 . 3 . . . . 1 . . . . . . . . Protector 2 | . . . . . . 1 1 . . . . . . . . . . . . Researcher 6 | . . . . . . . . . . . . . . . . . 6 . . Sentry 30 | . . . 10 . 9 9 1 . . 1 . . . . . . . . . Demolisher 3 | . . 2 . . . 1 . . . . . . . . . . . . . Hunter 2 | . . . . . 1 . . . . . 1 . . . . . . . . Programmer 17 | . . . . . . . 2 . 2 . . . . 2 1 3 3 . 4 Behemoth 1 | . . . . . . . . . . 1 . . . . . . . . . Packrat 1 | . . . . . . . . 1 . . . . . . . . . . . Best Kill Streak 16 | . 4 3 6 6 5 10 16 . 5 3 2 . 2 6 2 11 7 1 8 Combat Bots Only 11 | . 3 3 4 5 4 9 11 . 5 2 2 . . 4 1 5 5 . 8 Max Kills in Single Turn 7 | . 1 3 5 2 2 2 4 1 1 1 1 . 1 3 1 7 4 1 5 Gunslinging 1 | . . . 1 . . . . . . . . . . . . . . . . Exploded 5 | . . 3 4 1 . 1 4 . 1 . 1 . . 2 . 4 4 . 5 Melee 1 | . . . . . . . 1 . 1 1 . . . 1 1 . 1 . 1 Uniques/NPCs Destroyed 1 | . . . . . . . . . . . 1 . . . . . . . . A7 (-6/Cetus) Combat | -11 -10 -10 -9 -9 -8 -8 -7 -7 -6 -6 -6 -6 -6 -5 -4 -3 -3 -2 -1 -------- Run | Jun Mat Min Mat Min Mat Sto Fac Low Fac Ext Cet Arc Hub Fac Fac Res Tes Res Acc Damage Taken 19260 | . 511 494 1172 838 1602 2046 2609 44 1370 216 323 311 . 734 360 1190 1449 . 3991 Core 4529 | . 57 102 152 75 110 196 584 14 510 24 10 24 . 213 58 370 427 . 1603 Absorbed by Shields 151 | . . . . . . . . . . 39 87 . . . . 25 . . . Redirected to Shielding 171 | . . . . 6 3 . 75 . 51 . . . . 36 . . . . . Regen/Repaired (Parts) 419 | . . . 25 . 222 127 . . . . . . . 45 . . . . . Core Remaining (%) 58 | 100 . 36 . 43 . 44 . 14 . . . . 33 78 94 . 38 100 . Volleys Fired 557 | . 56 15 94 44 120 91 54 10 4 . 6 . 1 7 16 15 11 . 13 Largest 2 | . 2 2 2 2 2 2 2 1 1 . 1 . 1 1 1 1 1 . 1 Hottest 136 | . 40 120 120 46 136 96 92 28 43 . 39 . 105 39 35 43 80 . 113 Shots Fired 947 | . 111 27 184 79 221 168 74 10 4 . 6 . 1 7 16 15 11 . 13 Gun 467 | . 111 1 164 70 77 . 29 10 . . . . . . . . 5 . . Cannon 415 | . . 21 14 . 144 163 33 . . . . . 1 5 16 12 . . 6 Launcher 63 | . . 5 6 9 . 5 11 . 4 . 6 . . 2 . 2 6 . 7 Special 2 | . . . . . . . 1 . . . . . . . . 1 . . . Kinetic 708 | . 111 . 164 70 128 163 62 10 . . . . . . . . . . . Thermal 168 | . . 21 14 . 93 . . . . . . . 1 5 16 12 . . 6 Explosive 63 | . . 5 6 9 . 5 11 . 4 . 6 . . 2 . 2 6 . 7 Electromagnetic 6 | . . 1 . . . . . . . . . . . . . . 5 . . Robot Hit Streak 23 | . 13 11 18 23 12 9 11 . . . 4 . . 2 . 6 7 . 1 Robot Miss Streak 5 | . 3 2 3 3 3 3 5 . 2 . . . 1 . . 1 2 . 3 Penetration Max 1 | . . . . . 1 1 1 . . . . . . . . . . . . Secondary Targets 5 | . 1 . 3 1 . . . . . . . . . . . . . . . Max Gunslinging Chain 1 | . 1 . 1 1 . . . . . . . . . . . . . . . Shots Hit Robots 793 | . 65 17 140 62 139 107 54 2 38 22 5 1 2 39 15 17 33 2 33 Core Hits 506 | . 34 13 65 26 57 59 81 1 32 11 18 . 1 17 4 29 19 . 39 Critical Kills 3 | . . . . . . . 1 . . . . . . 1 . . 1 . . Critical Parts Destroyed 9 | . 3 . . . 1 . . . . . . . . 2 . . 1 . 2 Critical Strikes 49 | . 3 . . . 7 16 3 . 1 1 . 1 . 4 2 2 3 . 6 Destroy 5 | . 3 . . . 1 . 1 . . . . . . . . . . . . Blast 23 | . . . . . 6 16 1 . . . . . . . . . . . . Smash 8 | . . . . . . . . . . . . . . 3 . . 3 . 2 Sever 13 | . . . . . . . 1 . 1 1 . 1 . 1 2 2 . . 4 Melee Attacks 519 | . . . 5 . 8 5 60 9 98 29 3 3 6 86 41 33 45 13 75 Impact 101 | . . . . . . . . . . . 1 . . 46 23 . 13 4 14 Slashing 405 | . . . 5 . 8 5 51 9 98 29 2 3 6 40 18 29 32 9 61 Piercing 13 | . . . . . . . 9 . . . . . . . . 4 . . . Sneak Attacks 63 | . . . . . 1 1 7 1 9 5 . 1 1 9 6 5 9 1 7 Combat Hostiles 5 | . . . . . . . . . 1 3 . 1 . . . . . . . Follow-up Attacks 12 | . . . . . . . . . . . . . . 4 1 . . . 7 Damage Inflicted 37052 | . 731 537 2579 1478 3237 4154 3857 126 2709 1341 972 116 206 2880 1036 2523 3245 185 5140 Guns 4818 | . 731 . 1921 820 940 . 354 . . . . . . . . . 52 . . Cannons 6674 | . . 223 228 . 2222 3228 497 . . . . . . . . 276 . . . Explosions 11459 | . . 314 430 658 . 640 2301 . 742 . 927 . . 456 . 1484 732 . 2775 Melee 14100 | . . . . . 74 286 705 126 1967 1341 45 116 206 2424 1036 763 2461 185 2365 Ramming 1 | . . . . . 1 . . . . . . . . . . . . . . Kinetic 9383 | . 731 . 1921 820 1832 3228 851 . . . . . . . . . . . . Thermal 2414 | . . 223 228 . 1330 . 357 . . . . . . . . 276 . . . Explosive 10660 | . . 314 430 658 . 640 1502 . 742 . 927 . . 456 . 1484 732 . 2775 Electromagnetic 494 | . . . . . . . 442 . . . . . . . . . 52 . . Impact 2201 | . . . . . . . . . . . . . . 951 226 . 525 185 314 Slashing 11827 | . . . . . 74 286 633 126 1967 1341 45 116 206 1473 810 763 1936 . 2051 Piercing 72 | . . . . . . . 72 . . . . . . . . . . . . Highest Corruption 15 | . 1 1 . 15 . 7 12 12 5 5 5 5 5 5 2 7 7 . 7 Average Corruption 3 | . 1 1 . 1 . 3 2 9 1 5 5 5 5 2 1 5 2 . 4 Corruption Purged 17 | . . . . . . . . 5 . . . . . 5 . . 5 . 2 Corruption Blocked 2 | . . . . . . . . . . . . . . . . . 2 . . Effects 134 | . 4 2 . 14 . 32 10 11 1 26 5 1 1 3 1 5 10 . 8 Message Errors 30 | . . . . 6 . 5 4 1 1 5 2 . . 1 1 . 2 . 2 Matter Fused 33 | . 2 . . 2 . 5 2 5 . 6 1 . 1 1 . 3 3 . 2 Heat Flow Errors 22 | . 1 . . 2 . 5 1 3 . 5 1 1 . 1 . 1 1 . . Energy Discharges 13 | . . . . 1 . 7 2 1 . 1 . . . . . . 1 . . Parts Rejected 5 | . . 1 . . . 1 1 . . . 1 . . . . . . . 1 Parts Fused 3 | . . . . . . . . . . 3 . . . . . . . . . Data Loss (minor) 13 | . . . . 3 . 2 . 1 . 3 . . . . . 1 . . 3 Data Loss (major) 7 | . . . . . . 3 . . . 3 . . . . . . 1 . . Misfires 4 | . . 1 . . . 3 . . . . . . . . . . . . . Alerts 2 | . . . . . . . . . . . . . . . . . 2 . . Weapon Failures 2 | . 1 . . . . 1 . . . . . . . . . . . . . Overload Shots 1 | . . . . . . . . . . . . . 1 . . . . . . Overflow Damage 3002 | . . . 19 14 56 56 151 . 152 89 3 . 31 472 224 206 548 137 844 Projectiles 91 | . . . . . 56 32 3 . . . . . . . . . . . . Explosions 788 | . . . 19 14 . . 110 . 4 . 3 . . . . 206 115 . 317 Melee 2123 | . . . . . . 24 38 . 148 89 . . 31 472 224 . 433 137 527 Knockbacks 40 | . . . . . 5 15 11 . . . . . . 5 1 . 1 1 1 Impact 9 | . . . . . . . . . . . . . . 5 1 . 1 1 1 Kinetic 27 | . . . . . 5 13 9 . . . . . . . . . . . . Secondary 4 | . . . . . . 2 2 . . . . . . . . . . . . Self-Inflicted Damage 926 | . . . . 54 . 55 60 . 23 . . . . . . 118 . . 616 Shots 12 | . . . . 2 . 1 1 . 1 . . . . . . 1 . . 6 Rammed 1 | . . . . . 1 . . . . . . . . . . . . . . Targets Rammed 1 | . . . . . 1 . . . . . . . . . . . . . . Kicked . | . . . . . . . . . . . . . . . . . . . . Crushed . | . . . . . . . . . . . . . . . . . . . . Highest Temperature 360 | . 181 360 204 162 253 312 176 211 1 288 235 168 64 160 29 186 74 . 152 Average Temperature 65 | . 26 123 36 46 50 79 45 67 1 138 57 130 36 14 4 91 27 . 76 Received Heat Transfer 3573 | . 216 9 408 231 666 891 270 27 102 51 86 63 . 189 76 51 111 . 126 Effects 6 | . . . . . 3 3 . . . . . . . . . . . . . Energy Bleed 1 | . . . . . 1 . . . . . . . . . . . . . . Interference 5 | . . . . . 2 3 . . . . . . . . . . . . . Siege Activations . | . . . . . . . . . . . . . . . . . . . . Robots Corrupted . | . . . . . . . . . . . . . . . . . . . . Combat Hostiles . | . . . . . . . . . . . . . . . . . . . . Parts Fried 15 | . . . . . . . 2 . . . 1 . . 1 3 . 3 3 2 Impact Corruptions 23 | . . . . . . . . . . . . . . 9 3 . 3 4 4 Robots Melted . | . . . . . . . . . . . . . . . . . . . . Combat Hostiles . | . . . . . . . . . . . . . . . . . . . . Parts Melted 5 | . . 1 . . 4 . . . . . . . . . . . . . . Heat Transferred 4029 | . . 481 481 . 2442 . 275 . . . . . . . . 350 . . . Parts Sabotaged . | . . . . . . . . . . . . . . . . . . . . Parts Stolen . | . . . . . . . . . . . . . . . . . . . . Parts Stripped . | . . . . . . . . . . . . . . . . . . . . Power Chain Reactions 2 | . . . . . . . 2 . . . . . . . . . . . . Missiles Intercepted . | . . . . . . . . . . . . . . . . . . . . Alert | -11 -10 -10 -9 -9 -8 -8 -7 -7 -6 -6 -6 -6 -6 -5 -4 -3 -3 -2 -1 ------- Run | Jun Mat Min Mat Min Mat Sto Fac Low Fac Ext Cet Arc Hub Fac Fac Res Tes Res Acc Peak Influence 1549 | . 251 216 406 248 754 1223 1028 . 938 1178 1017 446 263 368 227 1020 1147 740 1549 Initial 578 | . . 27 43 67 7 318 555 . 378 300 540 394 149 128 96 87 573 578 444 Average 392 | . 80 128 175 101 348 735 594 . 595 691 789 413 205 230 164 456 717 647 769 Maximum Alert Level 4 | . 1 1 2 1 3 4 3 . 3 4 3 2 1 1 1 3 4 3 4 Low Security (%) 38 | 100 91 60 69 85 35 . . . . . . . 43 52 70 35 . . . Level 1 16 | . 8 39 28 14 16 6 . . 7 29 . 50 56 47 29 21 . . . Level 2 28 | . . . 2 . 36 46 80 . 63 26 40 50 . . . 7 61 90 55 Level 3 13 | . . . . . 10 32 19 . 28 30 59 . . . . 34 36 9 24 Level 4 3 | . . . . . . 13 . . . 14 . . . . . . 1 . 19 Level 5 . | . . . . . . . . . . . . . . . . . . . . High Security . | . . . . . . . . . . . . . . . . . . . . Max Security . | . . . . . . . . . . . . . . . . . . . . Squads Dispatched 62 | . 4 . 3 . 4 6 8 . 10 2 2 . 1 8 4 1 3 1 5 Investigation 20 | . 3 . 2 . 1 . . . 4 1 2 . . 4 2 1 . . . Extermination 9 | . . . . . . . 2 . 2 . . . . 2 1 . 1 . 1 Reinforcement 19 | . 1 . 1 . 2 2 4 . 4 . . . 1 1 1 . . . 2 Assault 10 | . . . . . 1 3 . . . 1 . . . . . . 2 1 2 Garrison 4 | . . . . . . 1 2 . . . . . . 1 . . . . . Intercept . | . . . . . . . . . . . . . . . . . . . . Searches Triggered 4 | . . . . . . . . . 2 1 . . . . . . . . 1 Construction Impeded 4 | . . . 1 . . . 2 . 1 . . . . . . . . . . Haulers Reinforced 5 | . . . . . . . . . 2 . . . . 1 1 . . . 1 Active Scanning Responses . | . . . . . . . . . . . . . . . . . . . . Cargo Convoy Interrupts 2 | . . . . . . . 1 . 1 . . . . . . . . . . Stealth | -11 -10 -10 -9 -9 -8 -8 -7 -7 -6 -6 -6 -6 -6 -5 -4 -3 -3 -2 -1 --------- Run | Jun Mat Min Mat Min Mat Sto Fac Low Fac Ext Cet Arc Hub Fac Fac Res Tes Res Acc Distress Signals 24 | . 3 . 2 . 2 5 1 . 2 1 2 . . 2 2 2 . . . Communications Jammed 19 | . . . . . . . . . 1 . 3 . . . . 9 3 3 . Distress Signals 18 | . . . . . . . . . . . 3 . . . . 9 3 3 . Times Spotted 576 | . 23 15 43 13 53 54 44 9 83 34 17 4 2 23 16 32 31 8 72 Peak Tracking Total 18 | . 4 6 4 3 7 7 13 4 18 7 5 4 1 9 11 12 6 7 16 Tactical Retreats 77 | . 2 2 . 1 4 1 2 7 25 5 1 . . 4 1 4 7 1 10 Traps | -11 -10 -10 -9 -9 -8 -8 -7 -7 -6 -6 -6 -6 -6 -5 -4 -3 -3 -2 -1 ------- Run | Jun Mat Min Mat Min Mat Sto Fac Low Fac Ext Cet Arc Hub Fac Fac Res Tes Res Acc Traps Triggered 20 | . 3 . 2 1 1 3 . . 2 4 . . . 1 . 1 . . 2 Indirectly . | . . . . . . . . . . . . . . . . . . . . Trap Hack Attempts . | . . . . . . . . . . . . . . . . . . . . Triggered . | . . . . . . . . . . . . . . . . . . . . Disarmed . | . . . . . . . . . . . . . . . . . . . . Reprogrammed . | . . . . . . . . . . . . . . . . . . . . Reused . | . . . . . . . . . . . . . . . . . . . . Traps Extracted . | . . . . . . . . . . . . . . . . . . . . Installed . | . . . . . . . . . . . . . . . . . . . . Triggered . | . . . . . . . . . . . . . . . . . . . . Machines | -11 -10 -10 -9 -9 -8 -8 -7 -7 -6 -6 -6 -6 -6 -5 -4 -3 -3 -2 -1 ---------- Run | Jun Mat Min Mat Min Mat Sto Fac Low Fac Ext Cet Arc Hub Fac Fac Res Tes Res Acc Machines Disabled 62 | . . . 2 2 6 9 21 . 2 1 2 . . . 2 7 3 . 5 Max in Single Turn 8 | . . . 1 1 1 2 8 . 1 . 1 . . . 1 2 1 . 1 Garrison Access 7 | . . . . . . 1 1 . 2 . . . . . . . . 1 2 Machines Repaired . | . . . . . . . . . . . . . . . . . . . . Machines Sabotaged . | . . . . . . . . . . . . . . . . . . . . Overloaded Fab Kills . | . . . . . . . . . . . . . . . . . . . . Hacking | -11 -10 -10 -9 -9 -8 -8 -7 -7 -6 -6 -6 -6 -6 -5 -4 -3 -3 -2 -1 --------- Run | Jun Mat Min Mat Min Mat Sto Fac Low Fac Ext Cet Arc Hub Fac Fac Res Tes Res Acc Machines Accessed 144 | . 7 . 15 1 13 12 9 1 18 14 2 . 4 11 5 5 12 5 10 Terminals 102 | . 6 . 12 . 8 7 5 . 11 14 2 . 4 5 3 4 9 4 8 Fabricators 7 | . . . . . . . . . 3 . . . . 2 1 1 . . . Repair Stations 11 | . . . 2 . 2 2 1 . . . . . . 3 . . 1 . . Recycling Units 5 | . 1 . . . 1 2 1 . . . . . . . . . . . . Scanalyzers 9 | . . . 1 . 2 . . . 2 . . . . 1 1 . 2 . . Garrison Access 8 | . . . . . . 1 2 . 2 . . . . . . . . 1 2 Total Hacks 395 | . 21 . 49 1 42 42 29 1 60 29 9 . 12 28 11 12 25 8 16 Successful 212 | . 6 . 29 1 26 23 16 1 37 20 4 . 6 14 5 4 11 6 3 Failed 182 | . 15 . 19 . 16 19 13 . 23 9 5 . 6 14 6 8 14 2 13 Catastrophic 32 | . . . 3 . 2 2 3 . 4 . 1 . 2 1 2 3 6 . 3 Database Lockouts 1 | . . . 1 . . . . . . . . . . . . . . . . Manual 133 | . 9 . 21 . 11 21 13 . 24 4 5 2 4 2 4 2 6 2 3 Terminals 283 | . 17 . 33 . 22 30 23 . 42 29 9 . 12 9 7 11 19 7 13 Fabricators 17 | . . . . . . . . . 9 . . . . 5 2 1 . . . Repair Stations 37 | . . . 7 . 9 7 2 . . . . . . 9 . . 3 . . Recycling Units 11 | . 4 . . . 2 4 1 . . . . . . . . . . . . Scanalyzers 35 | . . . 9 . 9 . . . 7 . . . . 5 2 . 3 . . Garrison Access 10 | . . . . . . 1 3 . 2 . . . . . . . . 1 3 Terminal Hacks 110 | . 3 . 13 1 5 10 13 1 17 18 4 . 5 4 . 3 8 4 1 Record 7 | . . . . . . . 1 . 1 . 4 . . . . . 1 . . Part Schematic 6 | . . . 1 . . 2 . . 2 . . . . . . . 1 . . Robot Analysis 3 | . . . . . . 3 . . . . . . . . . . . . . Prototype ID Bank 6 | . . . 1 . . . 2 . 2 1 . . . . . . . . . Open Door 15 | . . . . 1 . 1 . 1 1 10 . . . . . . 1 . . Open DSF 2 | . . . . . . . . . 1 . . . . . . . . 1 . Level Access Points 2 | . . . . . . . . . . . . . 1 . . . . 1 . Branch Access Points 8 | . . . . . 1 . 1 . 1 1 . . 1 1 . 1 . 1 . Emergency Access Points 2 | . . . 1 . . . . . . . . . . . . . 1 . . Machine Index 1 | . . . . . . . . . . 1 . . . . . . . . . Terminal Index 8 | . 1 . 1 . . . 1 . 1 1 . . 1 . . 1 1 . . Recycling Unit Index 1 | . . . . . . . 1 . . . . . . . . . . . . Alert Level 10 | . . . 3 . . 1 1 . 2 . . . 1 1 . . . 1 . Unreport Threat 11 | . . . 2 . 1 . 2 . 4 . . . . 1 . . 1 . . Locate Traps 2 | . . . . . . . . . . 1 . . . . . . . . 1 Maintenance Status 1 | . . . 1 . . . . . . . . . . . . . . . . Security Status 1 | . . . . . . . . . . 1 . . . . . . . . . Transport Status 1 | . . . . . . . 1 . . . . . . . . . . . . Recall Reinforcements 1 | . . . . . . . 1 . . . . . . . . . . . . Hauler Manifests 7 | . 1 . 1 . 1 . 1 . 1 1 . . . . . . 1 . . Registered Components 4 | . 1 . 1 . . . . . 1 . . . 1 . . . . . . Zone Layout 10 | . . . 1 . 2 3 1 . . 1 . . . 1 . 1 . . . Protovariant Controls 1 | . . . . . . . . . . . . . . . . . 1 . . Fabricator Hacks 10 | . . . . . . . . . 6 . . . . 3 1 . . . . Load Schematic 6 | . . . . . . . . . 3 . . . . 2 1 . . . . Build 4 | . . . . . . . . . 3 . . . . 1 . . . . . Repair Station Hacks 23 | . . . 5 . 7 6 . . . . . . . 4 . . 1 . . Scan Component 14 | . . . 3 . 4 3 . . . . . . . 3 . . 1 . . Repair 9 | . . . 2 . 3 3 . . . . . . . 1 . . . . . Recycling Unit Hacks 1 | . . . . . . 1 . . . . . . . . . . . . . Report Inventory 1 | . . . . . . 1 . . . . . . . . . . . . . Scanalyzer 29 | . . . 8 . 9 . . . 6 . . . . 3 2 . 1 . . Insert Component 14 | . . . 4 . 3 . . . 3 . . . . 2 1 . 1 . . Analyze 15 | . . . 4 . 6 . . . 3 . . . . 1 1 . . . . Garrison Access Hacks 7 | . . . . . . 1 1 . 2 . . . . . . . . 1 2 Seal Access 7 | . . . . . . 1 1 . 2 . . . . . . . . 1 2 Unauthorized Hacks 32 | . 3 . 3 . 5 5 2 . 6 2 . . 1 . 2 1 1 1 . Terminals 30 | . 3 . 3 . 4 4 2 . 6 2 . . 1 . 2 1 1 1 . Assimilate 3 | . . . . . . . . . 1 . . . . . 1 . . 1 . Botnet 27 | . 3 . 3 . 4 4 2 . 5 2 . . 1 . 1 1 1 . . Fabricators . | . . . . . . . . . . . . . . . . . . . . Repair Stations . | . . . . . . . . . . . . . . . . . . . . Recycling Units 2 | . . . . . 1 1 . . . . . . . . . . . . . Mask 2 | . . . . . 1 1 . . . . . . . . . . . . . Scanalyzers . | . . . . . . . . . . . . . . . . . . . . Garrison Access . | . . . . . . . . . . . . . . . . . . . . Data Cores Recovered 2 | . . . . . 1 . . . 1 . . . . . . . . . . Used 1 | . . . . . 1 . . . . . . . . . . . . . . Hacking Detections 120 | . 7 . 14 . 11 9 8 . 14 8 3 . 4 11 5 5 10 3 8 Full Trace Events 16 | . 1 . 2 . . 1 . . 3 . 2 . . 4 2 1 . . . Feedback Events 3 | . . . . . . 1 . . . . . . . 2 . . . . . Corruption 2 | . . . . . . 1 . . . . . . . 1 . . . . . Hackware Fried 1 | . . . . . . . . . . . . . . 1 . . . . . Feedback Blocked . | . . . . . . . . . . . . . . . . . . . . Robot Schematics Acquired 4 | . . . . . . . . . . . . . . . . . 4 . . Robots Built . | . . . . . . . . . . . . . . . . . . . . Authchips . | . . . . . . . . . . . . . . . . . . . . Time . | . . . . . . . . . . . . . . . . . . . . Total Robot Build Rating . | . . . . . . . . . . . . . . . . . . . . Part Schematics Acquired 33 | . . . 5 . 3 2 . . 5 . . . . 1 1 . 16 . . Parts Built 4 | . . . . . . . . . 3 . . . . 1 . . . . . Authchips . | . . . . . . . . . . . . . . . . . . . . Time 530 | . . . . . . . . . 378 . . . . 152 . . . . . Total Part Build Rating 19 | . . . . . . . . . 14 . . . . 5 . . . . . Parts Repaired 8 | . . . 2 . 3 2 . . . . . . . 1 . . . . . Time 363 | . . . 134 . 120 87 . . . . . . . 22 . . . . . Parts Recycled . | . . . . . . . . . . . . . . . . . . . . Recycled Matter . | . . . . . . . . . . . . . . . . . . . . Retrieved Matter . | . . . . . . . . . . . . . . . . . . . . Retrieved Components . | . . . . . . . . . . . . . . . . . . . . Parts Scanalyzed 13 | . . . 4 . 3 . . . 3 . . . . 1 1 . 1 . . Part Schematics Acquired 12 | . . . 4 . 3 . . . 3 . . . . 1 1 . . . . Parts Damaged . | . . . . . . . . . . . . . . . . . . . . Bothacking | -11 -10 -10 -9 -9 -8 -8 -7 -7 -6 -6 -6 -6 -6 -5 -4 -3 -3 -2 -1 ------------ Run | Jun Mat Min Mat Min Mat Sto Fac Low Fac Ext Cet Arc Hub Fac Fac Res Tes Res Acc Used RIF Installer . | . . . . . . . . . . . . . . . . . . . . Robots Hacked 1 | . . . . . . . 1 . . . . . . . . . . . . Non-combat 1 | . . . . . . . 1 . . . . . . . . . . . . Combat . | . . . . . . . . . . . . . . . . . . . . Robot Hacks Applied 1 | . . . . . . . 1 . . . . . . . . . . . . find_recycling 1 | . . . . . . . 1 . . . . . . . . . . . . Relay Couplers Released . | . . . . . . . . . . . . . . . . . . . . Fabnet Peak Effective % . | . . . . . . . . . . . . . . . . . . . . Robots Rewired 14 | . . . . . . . . . . 14 . . . . . . . . . Allies Hacked 1 | . . . . . . . . . . . . . . . 1 . . . . Hacks Repelled . | . . . . . . . . . . . . . . . . . . . . Allies | -11 -10 -10 -9 -9 -8 -8 -7 -7 -6 -6 -6 -6 -6 -5 -4 -3 -3 -2 -1 -------- Run | Jun Mat Min Mat Min Mat Sto Fac Low Fac Ext Cet Arc Hub Fac Fac Res Tes Res Acc Total Allies 42 | . . . . . . 10 . 1 1 26 2 . . . 1 . . 1 . Largest Group 19 | . . . . . . 10 . 1 1 19 7 . . . 1 . . . . Highest-Rated Group 660 | . . . . . . 173 . 180 26 660 436 . . . 45 . . . . Highest-Rated Ally 180 | . . . . . . 29 . 180 26 159 159 . . . 45 . . . . Total Orders 5 | . . . . . . 1 . . . . . . . . 4 . . . . STAY 3 | . . . . . . 1 . . . . . . . . 2 . . . . FOLLOW 2 | . . . . . . . . . . . . . . . 2 . . . . Ally Attacks 337 | . . . . . . 78 . . . 190 69 . . . . . . . . Total Damage 7169 | . . . . . . 1037 . . . 4461 1671 . . . . . . . . Kills 53 | . . . . . . 12 . . . 28 13 . . . . . . . . Allies Corrupted 2 | . . . . . . . . . 1 1 . . . . . . . . . Allies Melted . | . . . . . . . . . . . . . . . . . . . . Intel | -11 -10 -10 -9 -9 -8 -8 -7 -7 -6 -6 -6 -6 -6 -5 -4 -3 -3 -2 -1 ------- Run | Jun Mat Min Mat Min Mat Sto Fac Low Fac Ext Cet Arc Hub Fac Fac Res Tes Res Acc Robot Analysis Total 3 | . . . . . . 3 . . . . . . . . . . . . . Derelict Logs Recovered 4 | . . 1 . 2 . . . 1 . . . . . . . . . . . Drone Launches . | . . . . . . . . . . . . . . . . . . . . Drone Recoveries . | . . . . . . . . . . . . . . . . . . . . Exploration | -11 -10 -10 -9 -9 -8 -8 -7 -7 -6 -6 -6 -6 -6 -5 -4 -3 -3 -2 -1 ------------- Run | Jun Mat Min Mat Min Mat Sto Fac Low Fac Ext Cet Arc Hub Fac Fac Res Tes Res Acc Turns Passed 19406 | 75 1731 527 3025 1485 2436 1951 1679 289 974 979 184 24 116 1024 602 383 860 320 742 Spaces Moved 18547 | 44 903 451 1512 708 1183 854 1150 757 2208 1407 404 63 269 1697 1115 585 1209 579 1449 Core 30 | 7 . . . . . . . . . . . . . 5 . . . . 18 Treads 4156 | 37 903 8 1453 77 1005 673 . . . . . . . . . . . . . Legs 565 | . . 7 . 488 70 . . . . . . . . . . . . . . Wheels 1908 | . . 436 59 143 108 181 970 . . . . . . . . . . . 11 Hover . | . . . . . . . . . . . . . . . . . . . . Flight 11888 | . . . . . . . 180 757 2208 1407 404 63 269 1692 1115 585 1209 579 1420 Fastest Speed 24 | 50 160 95 95 130 122 151 26 27 26 26 26 26 26 24 24 32 28 29 27 Average Speed 71 | 142 160 98 157 180 145 174 107 27 26 26 26 26 26 26 27 32 31 29 30 Slowest Speed 260 | 160 160 240 240 260 195 233 165 27 102 26 26 26 32 250 107 32 37 32 90 Overloaded Moves . | . . . . . . . . . . . . . . . . . . . . Propulsion Burnouts . | . . . . . . . . . . . . . . . . . . . . Robots Hopped 104 | . . . . . . . . . 11 37 . 5 6 8 8 7 11 3 8 Cave-ins Triggered . | . . . . . . . . . . . . . . . . . . . . Exploration Rate (%) 62 | 3 99 97 93 99 94 93 35 74 52 92 87 76 21 42 22 36 91 14 39 Regions Visited 19 Branch Regions 9 Pre-discovered Areas 4 | . . . . 3 . . . 1 . . . . . . . . . . . Known Exits Taken 13 | . . . . . 1 . 1 1 1 1 1 1 1 1 1 1 1 1 . Unknown Exits Taken 6 | 1 1 1 1 1 . 1 . . . . . . . . . . . . . Scrap Searched 4 | . . 1 . 1 . . . 2 . . . . . . . . . . . Spaces Dug 254 | . . . 4 . 18 6 33 5 61 3 . 2 3 34 20 20 12 9 24 Terrain Destroyed 1128 | . . 43 17 84 44 134 140 5 86 3 81 2 4 45 36 62 113 9 220 Melee 217 | . . . 4 . 7 1 33 2 45 3 . 2 3 33 20 20 12 9 23 Projectile 142 | . . . . . 37 72 2 2 . . . . 1 5 16 1 . . 6 AOE 768 | . . 43 13 84 . 61 105 . 41 . 81 . . 7 . 41 101 . 191 Terrain Rammed . | . . . . . . . . . . . . . . . . . . . . Walls Destroyed . | . . . . . . . . . . . . . . . . . . . . Machines Disabled . | . . . . . . . . . . . . . . . . . . . . Actions | -11 -10 -10 -9 -9 -8 -8 -7 -7 -6 -6 -6 -6 -6 -5 -4 -3 -3 -2 -1 --------- Run | Jun Mat Min Mat Min Mat Sto Fac Low Fac Ext Cet Arc Hub Fac Fac Res Tes Res Acc Total 22831 | 53 1090 507 1977 838 1682 1137 1419 821 2481 1943 462 60 296 2128 1322 703 1583 705 1624 Wait 2202 | . 104 21 230 47 248 122 50 29 83 417 25 . 17 307 131 7 235 94 35 Move 18347 | 43 902 450 1511 707 1182 853 1149 756 2187 1348 403 52 256 1680 1102 570 1187 572 1437 Hop 75 | . . . . . . . . . 9 21 . 5 6 8 4 5 10 3 4 Pick Up 192 | 4 13 4 31 7 33 7 16 4 22 2 . . 2 8 5 9 15 5 5 Fast Attach 224 | 6 3 2 15 8 14 13 17 4 17 7 6 . 4 19 9 13 33 7 27 Attach 95 | . . 7 4 5 9 4 16 . 14 4 . . 3 . 3 8 9 2 7 Detach 65 | . 1 3 3 3 5 3 5 1 6 8 . . 1 5 2 2 7 2 8 Swap 195 | . 4 5 33 8 18 23 32 4 13 6 14 . . 7 3 15 1 . 9 Drop 277 | . 7 . 51 9 44 12 20 5 28 6 5 . . 15 10 10 30 7 18 Fire 557 | . 56 15 94 44 120 91 54 10 4 . 6 . 1 7 16 15 11 . 13 Melee 485 | . . . 5 . 8 5 60 8 98 29 3 3 6 72 37 32 45 13 61 Ram . | . . . . . . . . . . . . . . . . . . . . Kick . | . . . . . . . . . . . . . . . . . . . . Crush 1 | . . . . . 1 . . . . . . . . . . . . . . Escape Stasis 46 | . . . . . . . . . . 29 . . . . . 17 . . . Rewire 70 | . . . . . . 4 . . . 66 . . . . . . . . . Trap . | . . . . . . . . . . . . . . . . . . . . Miscellaneous . | . . . . . . . . . . . . . . . . . . . . Route ------- -11/Junkyard -10/Materials (discovered 4 exits: *Mat x3 / [*Min]) -10/Mines (discovered 2 exits: *Mat x2) -9/Materials (discovered 4 exits: *Mat x3 / *Min) -9/Mines (discovered 2 exits: *Mat x2) -8/Materials (discovered 3 exits: *Fac x2 / *Sto) -8/Storage (discovered 2 exits: *Fac / [*Rec]) -7/Factory (discovered 3 exits: *Fac / *Low x2) -7/Lower Caves -6/Factory (discovered 4 exits: *Low x2 / *Ext x2) -6/Extension (discovered 3 exits: *Fac x2 / *Cet) -6/Cetus (discovered 3 exits: *Fac x2 / *Arc) -6/Archives (discovered 2 exits: *Fac / *Hub) -6/Hub_04(d) (discovered 4 exits: *Fac x4) -5/Factory (discovered 3 exits: *Fac / *Upp x2) -4/Factory -3/Research (discovered 4 exits: *Res / Arm / *Tes x2) -3/Testing -2/Research (discovered 6 exits: *Acc x3 / Qua x2 / DSF) -1/Access History --------- Turn | Location | Event 14 | -11/Junkyard | Discovered new exit (range 15) 76 | -11/Junkyard | Entered Materials 135 | -10/Materials | Discovered new exit (range 15) 307 | -10/Materials | Build established: Mutant 368 | -10/Materials | Discovered new exit (range 12) 715 | -10/Materials | Discovered new exit (range 3) 963 | -10/Materials | Discovered new exit (range 15) 1807 | -10/Materials | Entered Mines 1808 | -10/Mines | Assembled infested the area 1831 | -10/Mines | Core integrity fell below 50% 1863 | -10/Mines | Lost 5 parts (1p2n2w) 1915 | -10/Mines | Discovered new exit (range 6) 2115 | -10/Mines | Learned Materials interactive machine intel 2122 | -10/Mines | Received a Rocket Launcher from a helpful Derelict 2197 | -10/Mines | Found a damaged Exp. Sensor Array with a note attached 2199 | -10/Mines | Found Prototype Device 2322 | -10/Mines | Discovered new exit (range 6) 2334 | -10/Mines | Entered Materials 2334 | -9/Materials | Evolved 2 slots: Propulsion x1, Utility x1 2335 | -9/Materials | Loaded intel: 18 interactive machine locations 2663 | -9/Materials | Identified Exp. Sensor Array 2793 | -9/Materials | Discovered new exit (range 7) 3097 | -9/Materials | Discovered new exit (range 10) 3200 | -9/Materials | Build established: Scavenger-Mutant 3717 | -9/Materials | Build established: Mutant 3781 | -9/Materials | Central database locked down 3951 | -9/Materials | Discovered new exit (range 6) 4667 | -9/Materials | Build established: Scavenger-Mutant 4851 | -9/Materials | Repaired Exp. Sensor Array 4887 | -9/Materials | Repaired Structural Scanner 5147 | -9/Materials | Discovered new exit (range 12) 5359 | -9/Materials | Entered Mines 5360 | -9/Mines | Learned location of Storage (-8) 5400 | -9/Mines | Met a Derelict who couldn't figure out how to use a Trap Extractor 5484 | -9/Mines | Build established: Mutant 5621 | -9/Mines | Discovered new exit (range 7) 5848 | -9/Mines | Lost 3 parts (2n1u) 5934 | -9/Mines | Learned location of Zion (-6) 6109 | -9/Mines | Build established: Scavenger-Mutant 6390 | -9/Mines | Core integrity fell below 50% 6497 | -9/Mines | Discovered new exit (range 9) 6828 | -9/Mines | System corruption reached 10% 6844 | -9/Mines | Entered Materials 6844 | -8/Materials | Evolved 2 slots: Propulsion x1, Utility x1 6937 | -8/Materials | Repaired Hrd. Light Armor Plating? 7114 | -8/Materials | Build established: Mutant 7776 | -8/Materials | Discovered new exit (range 16) 8184 | -8/Materials | Discovered new exit (range 13) 8314 | -8/Materials | Repaired Arm. Huge Wheel 8359 | -8/Materials | Repaired Broken Cooling System 8632 | -8/Materials | Discovered new exit (range 3) 8978 | -8/Materials | Identified exit to Storage 9244 | -8/Materials | First assault squad dispatched 9280 | -8/Materials | Entered Storage 9358 | -8/Storage | Assisted by bots powering up and referring to "LRC-V3" 9432 | -8/Storage | Garrison activated, responded to threat 9520 | -8/Storage | Discovered new exit (range 10) 9558 | -8/Storage | Used back door to open Recycling access 9672 | -8/Storage | Build established: Commander-Mutant 9680 | -8/Storage | First assault squad dispatched 10073 | -8/Storage | Build established: Mutant 10349 | -8/Storage | Repaired Adv. Treads 10380 | -8/Storage | Repaired Imp. VTOL Module 10556 | -8/Storage | Destroyed 9 combat bots 10642 | -8/Storage | Discovered new exit (range 15) 10915 | -8/Storage | Core integrity fell below 50% 11231 | -8/Storage | Entered Factory 11231 | -7/Factory | Evolved 2 slots: Utility x2 11358 | -7/Factory | Build established: Scavenger-Mutant 11467 | -7/Factory | Lost 5 parts (1p2n1u1w) 12157 | -7/Factory | Identified exit to Lower Caves 12487 | -7/Factory | Discovered new exit (range 15) 12779 | -7/Factory | Garrison activated, responded to threat 12780 | -7/Factory | Cargo convoy interrupted 12800 | -7/Factory | Destroyed 11 combat bots 12804 | -7/Factory | Core integrity fell below 50% 12805 | -7/Factory | System corruption reached 10% 12835 | -7/Factory | Lost 10 parts (1p4n2u3w) 12910 | -7/Factory | Entered Lower Caves 12911 | -7/Lower Caves | Core integrity fell below 20% 12943 | -7/Lower Caves | 7V-RTL showed up to help 12947 | -7/Lower Caves | 7V-RTL revealed a hidden path 12948 | -7/Lower Caves | Identified exit to Factory 13004 | -7/Lower Caves | Learned location of Extension (-6) 13005 | -7/Lower Caves | Attracted the attention of an 0b10 checkpoint 13023 | -7/Lower Caves | Build established: Sprinter 13199 | -7/Lower Caves | Entered Factory 13199 | -6/Factory | Evolved 2 slots: Utility x2 13258 | -6/Factory | Identified exit to Lower Caves 13258 | -6/Factory | Identified exit to Extension 13430 | -6/Factory | Build established: Hacker-Sprinter 13549 | -6/Factory | Search patrols dispatched 13562 | -6/Factory | Fabricated Imp. VTOL Module? 13633 | -6/Factory | Fabricated Exp. Sensor Array? 13655 | -6/Factory | Fabricated Imp. VTOL Module? 13899 | -6/Factory | Search patrols dispatched 13978 | -6/Factory | Cargo convoy interrupted 13997 | -6/Factory | Core integrity fell below 50% 14029 | -6/Factory | Spotted B-75 Beast 14100 | -6/Factory | Lost 3 parts (2n1u) 14173 | -6/Factory | Entered Extension 14187 | -6/Extension | Rescued a captive Derelict 14192 | -6/Extension | Rescued a captive Derelict 14194 | -6/Extension | Rescued a captive Derelict 14223 | -6/Extension | Rescued a captive Derelict 14233 | -6/Extension | Rescued a captive Derelict 14346 | -6/Extension | Spotted B-75 Beast 14523 | -6/Extension | Search patrols dispatched 14608 | -6/Extension | Identified exit to Cetus 14626 | -6/Extension | Spotted B-75 Beast 14634 | -6/Extension | Destroyed B-75 Beast 14639 | -6/Extension | Discovered new exit (range 3) 14648 | -6/Extension | Allies destroyed B-75 Beast 14669 | -6/Extension | Rescued a captive Derelict 14670 | -6/Extension | Rescued a captive Derelict 14678 | -6/Extension | Rescued A7 14689 | -6/Extension | Rescued a captive Derelict 14690 | -6/Extension | Rescued a captive Derelict 14736 | -6/Extension | Rescued a captive Derelict 14742 | -6/Extension | Rescued a captive Derelict 14775 | -6/Extension | Discovered new exit (range 10) 14781 | -6/Extension | Identified exit to Factory 14873 | -6/Extension | First assault squad dispatched 15152 | -6/Extension | Entered Cetus 15152 | -6/Cetus | Accompanied by 7 allies (A7) 15157 | -6/Cetus | Acquired a Cetus Manufacturing Module code from A7 15158 | -6/Cetus | Spotted Cetus Guard 15158 | -6/Cetus | Spotted Cetus Guard 15158 | -6/Cetus | Spotted Cetus Guard 15164 | -6/Cetus | Discovered exit to Factory (range 15) 15169 | -6/Cetus | Spotted Cetus Guard 15175 | -6/Cetus | Allies destroyed Cetus Guard 15177 | -6/Cetus | Allies destroyed Cetus Guard 15184 | -6/Cetus | Allies destroyed Cetus Guard 15240 | -6/Cetus | Started Cetus Manufacturing Module 15243 | -6/Cetus | Escorted A7 to Cetus Mainframe 15265 | -6/Cetus | Manufactured an Enhanced Grunt 15266 | -6/Cetus | Discovered new exit (range 15) 15277 | -6/Cetus | Spotted Cetus Guard 15277 | -6/Cetus | Spotted Cetus Guard 15287 | -6/Cetus | Spotted Cetus Guard 15289 | -6/Cetus | Spotted Cetus Guard 15290 | -6/Cetus | Manufactured an Enhanced Grunt 15291 | -6/Cetus | Discovered exit to Factory (range 16) 15303 | -6/Cetus | Cetus Manufacturing Module disabled 15303 | -6/Cetus | Identified exit to Archives 15336 | -6/Cetus | Entered Archives 15352 | -6/Archives | Unable to access archive contents 15353 | -6/Archives | Discovered exit to Factory (range 14) 15355 | -6/Archives | Unable to access archive contents 15356 | -6/Archives | Discovered new exit (range 13) 15360 | -6/Archives | Identified exit to Hub_04(d) 15360 | -6/Archives | Entered Hub_04(d) 15391 | -6/Hub_04(d) | Lost 4 parts (1p3u) 15440 | -6/Hub_04(d) | Spotted B-75 Beast 15476 | -6/Hub_04(d) | Entered Factory 15476 | -5/Factory | Evolved 2 slots: Propulsion x1, Utility x1 15774 | -5/Factory | Build established: Hacker-Ninja 16090 | -5/Factory | Repaired Mic. Nuclear Core 16162 | -5/Factory | Hacking Suite fried by hacking feedback 16343 | -5/Factory | Identified exit to Upper Caves 16424 | -5/Factory | Discovered new exit (range 13) 16426 | -5/Factory | Garrison activated, responded to threat 16492 | -5/Factory | Fabricated Cld. Cesium-ion Thruster? 16500 | -5/Factory | Identified exit to Factory 16500 | -5/Factory | Entered another Factory area 16500 | -4/Factory | Evolved 2 slots: Utility x2 16670 | -4/Factory | Discovered new exit (range 21) 16687 | -4/Factory | Spotted B-86 Titan 17071 | -4/Factory | Identified exit to Research 17102 | -4/Factory | Entered Research 17102 | -3/Research | Evolved 2 slots: Utility x2 17133 | -3/Research | Lost 5 parts (2n3u) 17198 | -3/Research | Build established: Ninja 17294 | -3/Research | Spotted B-86 Titan 17318 | -3/Research | Identified exit to Armory 17318 | -3/Research | Identified exit to Testing 17368 | -3/Research | Discovered new exit (range 6) 17424 | -3/Research | Lost 3 parts (1p2u) 17475 | -3/Research | Found Prototype Slashing Weapon 17485 | -3/Research | Entered Testing 17490 | -3/Testing | Identified Nanosword 17684 | -3/Testing | Found Prototype Device 17684 | -3/Testing | Identified Exp. Thermal Shield 17735 | -3/Testing | First assault squad dispatched 17853 | -3/Testing | Lost 4 parts (1n3u) 17862 | -3/Testing | Discovered new exit (range 12) 17864 | -3/Testing | Found Prototype Slashing Weapon 17864 | -3/Testing | Identified Centrium Greatsword 17889 | -3/Testing | Found Prototype Device 17889 | -3/Testing | Identified Adv. Kinecellerator 18220 | -3/Testing | Found Prototype Hackware 18220 | -3/Testing | Identified System Mapper 18233 | -3/Testing | Spotted Striker 18233 | -3/Testing | Spotted Striker 18239 | -3/Testing | Found Prototype Energy Gun 18239 | -3/Testing | Identified Tachyon Dispersion Ray 18276 | -3/Testing | Spotted Alpha 7 18280 | -3/Testing | Stole the SGEMP Prototype 18281 | -3/Testing | Core integrity fell below 50% 18338 | -3/Testing | Lost 5 parts (1p2n1u1w) 18344 | -3/Testing | Identified exit to Research 18345 | -3/Testing | Entered Research 18345 | -2/Research | Evolved 2 slots: Propulsion x1, Utility x1 18421 | -2/Research | Found Nanosword 18426 | -2/Research | Found Nanosword 18468 | -2/Research | Identified exit to DSF 18571 | -2/Research | Build established: Scavenger-Ninja 18595 | -2/Research | First assault squad dispatched 18607 | -2/Research | Discovered new exit (range 6) 18614 | -2/Research | Identified exit to Access 18632 | -2/Research | Identified exit to Quarantine 18665 | -2/Research | Entered Access 18665 | -1/Access | Spotted B-99 Colossus 18665 | -1/Access | Evolved 2 slots: Propulsion x1, Utility x1 18898 | -1/Access | Build established: Hacker-Ninja 18915 | -1/Access | Search patrols dispatched 19165 | -1/Access | First assault squad dispatched 19205 | -1/Access | Destroyed 8 combat bots 19228 | -1/Access | Lost 10 parts (5n4u1w) 19258 | -1/Access | Found Unknown Launcher 19258 | -1/Access | Identified Gamma Bomb Array 19359 | -1/Access | Core integrity fell below 50% 19376 | -1/Access | Core integrity fell below 20% 19407 | -1/Access | Destroyed by S-43 Plague with Heavy Machine Gun Last Messages --------------- 19379_ Slug penetrates Wall. 19379_ System Shield destroyed. 19380_ Acquired Xenon Bombardment Thruster. 19381_ Acquired 10 matter. 19382_ Acquired Lgt. Antimatter Reactor. 19383_ Dropped Lgt. Antimatter Reactor. 19384_ Acquired 10 matter. 19388_ The unstable cave ceiling collapses. 19388_ Dropped Gamma Rifle. 19389_ Acquired Hvy. Siege Treads. 19392_ Acquired Adv. Reaction Control System. 19393_ Dropped Gamma Bomb Array. 19401_ Adv. Reaction Control System destroyed. 19406_ Wave Collapse Detector explodes. 19406_ Adv. Target Analyzer destroyed. 19406_ Destroyed Adv. Target Analyzer. 19406_ S-43 Plague destroyed. 19406_ Destroyed Xenon Bombardment Thruster. 19406_ S-43 Plague destroyed. [Achievement: Overachiever] Map ----- +----------------------------------------------------+ | ?????????????????????????????????????????????????? | | ?????????????????????????????????????????????????? | | ???????????????##????????????????????????????????? | | ??????????? ????????????????????????????????? | | ?????????? ???????????????????????????????? | | ?????????? ???????????????????????????????? | | ?????????? ???????????????????????????????? | | # ##?#??? ???????????????????????????????? | | ! ???????????????????????????????? | | ???????????????????????????????? | | ??? ???????????????????????????????? | | ? "" ???????????????????????????????? | | " """ ###????????????????????????????? | | """ T" #????????????????????????????? | | """ """ #????????????????????????????? | | " g "" #????????????????????????????? | | g ##########???????????????????? | | # #???????????????????? | | ? # #???????????????????? | | ?############## # ##??????????????????? | | ####?# # # #??????????????????? | | ### + /s [%s #####??????????????? | | # # =s ???????????????? | | # " # s %[ #?????????????????? | | #""" # = #?????????????????? | | # """ !# @ #?????????????????? | | " # # #?????????????????? | | # [ ] # #""""" ##?????????????????? | | # #"""F"" ###??????????????????? | | ########## #""" ""# ????????????????????? | | #????????# ???????????????????? | | ###????????# ? ??????????????????? | | ####?????????? ?????????????????? | | #???????????? " ? ????????????????? | | ????????????? """ ?? ????????????????? | | ????????????# """ ? ???????????????? | | ????????????# " ?? ??????????????? | | ????????????# [ ??? ?????????????? | | ????????????# ?? ????????????? | | ????????????# ??? ???????????? | | #####???????# ??s]??? ???????????? | | #???????####""" """##?????????? ??????????? | | #??????????#"""G??????????????? ???????????? | | #???????????##???????????????= ?????????? | | #??????????????????????????%*%* ?????????? | | #????????????????????????? =[%= ??????????? | | # ###??????????????????????? [%%* ????????????? | | #+####???????????????????? F ""????????????? | | #???????############ """?????????????? | | ######### """ ??????????? | +----------------------------------------------------+ Best States ------------- Heat Dissipation 53 Energy Generation 30 Energy Capacity 750 Matter Stores 300 Matter Capacity 300 Sight Range 22 Robot Scan Range 20 Terrain Scan Range 20 Terrain Scan Density 210 Jamming Range 14 Power Amplification 40 Corruption Containment 8 Corruption Block 14 Armor Coverage 450 Core Shielding 20 Propulsion Shielding 66 Utility Shielding 66 Evasion (%) 75 Targeting Accuracy 8 Melee Accuracy 21 Target Analysis 12 Core Analysis 6 Armor Integrity Analysis 30 Recoil Reduction 4 Matter Filtering 30 Kinecelleration 50 Offensive Hacking 30 Defensive Hacking 10 Item Schematics ----------------- Exp. Sensor Array | -9/Materials | Scanalyzed Hrd. Light Armor Plating | -9/Materials | Scanalyzed Structural Scanner | -9/Materials | Scanalyzed Huge Storage Unit | -9/Materials | Scanalyzed Hcp. Storage Unit | -9/Materials | Hacked Lyr. Light Armor Plating | -8/Materials | Scanalyzed Hacking Suite | -8/Materials | Scanalyzed Imp. VTOL Module | -8/Materials | Scanalyzed Imp. Light Armor Plating | -8/Storage | Hacked Imp. Reaction Control System | -8/Storage | Hacked Cld. VTOL Module | -6/Factory | Scanalyzed Lrn. Missile Launcher | -6/Factory | Scanalyzed Cld. Cesium-ion Thruster | -6/Factory | Scanalyzed Imp. Cesium-ion Thruster | -6/Factory | Hacked Imp. Hacking Suite | -6/Factory | Hacked Lyr. Medium Armor Plating | -5/Factory | Scanalyzed Adv. Sensor Array | -4/Factory | Scanalyzed Cld. Field Propulsion Drive | -3/Testing | Archive Adv. Myomer Leg | -3/Testing | Archive Diametric Drive | -3/Testing | Archive Impact Mace | -3/Testing | Archive Exp. Focal Shield | -3/Testing | Archive Exp. Thermal Shield | -3/Testing | Archive Lgt. Regenerative Plating | -3/Testing | Hacked Imp. Matter Neutralizer | -3/Testing | Archive Hdn. Centrium Wheel | -3/Testing | Archive Centrium Heavy Armor Plating | -3/Testing | Archive Exp. Coolant Injector | -3/Testing | Archive Cld. Proton Cannon | -3/Testing | Archive Ionic Axe | -3/Testing | Archive Exp. Hacking Suite | -3/Testing | Archive Prc. Phase Gun | -3/Testing | Archive Lgt. Neutrino Core | -3/Testing | Archive Robot Schematics ------------------ L-61 Swordsman | -3/Testing | Archive G-67 Veteran | -3/Testing | Archive B-60 Warrior | -3/Testing | Archive A-02 Transporter | -3/Testing | Archive Fabricated ------------ Imp. VTOL Module | x1 | -6/Factory Exp. Sensor Array | x1 | -6/Factory Imp. VTOL Module | x1 | -6/Factory Cld. Cesium-ion Thruster | x1 | -5/Factory Alien Tech Used ----------------- None Achievements -------------- Overachiever Project G-00 Watch This! Challenges ------------ None Game ------ Seed GlidesysMatterCutter Manual? 0 Play Time 06:48:40 Cumulative 159.2 hours Start 2023.03.28 @ 13:52:25 End 2023.03.31 @ 11:55:59 Sessions 13 Manual Loads 0 Difficulty Rogue Special Mode None Game No. 83 Rogue 83 Adventurer 0 Explorer 0 Win Type - Total 2 Types 2/0/0/0/0/0/0/0/0 Lore% 51 Gallery% 62 Achievement% 50 Wizard Run 0 Options --------- ASCII 0 Keyboard 1 Movement Vi Keybinds 0 Fullscreen 1 Font 12/Smallcaps Map View 83x54 Tactical HUD 1 Map Filters NONE Filters NONE Steam 1 RUN: b5472a17-c09f-401d-a5c1-23b52eba4274